[Event "Titled Tuesday Blitz February 14 Early 2023"]
[White "Sarkar, Justin"]
[Black "Meera, Sai"]
[WhiteFideId "2010011"]
[BlackFideId "5004357"]
[WhiteElo "2309"]
[BlackElo "2064"]
[Result "1-0"]
[Round "07"]
[TimeControl "180+2"]
[Date "2023.02.15"]
[WhiteClock "0:00:03"]
[BlackClock "0:01:15"]

1. d4 {[%clk 0:02:20]}  Nf6 {[%clk 0:02:53]} 2. c4 {[%clk 0:02:19]}  e6 {[%clk 0:02:52]} 3. Nc3 {[%clk 0:02:18]}  Bb4 {[%clk 0:02:50]} 4. e3 {[%clk 0:02:18]}  O-O {[%clk 0:02:49]} 5. a3 {[%clk 0:02:18]}  Bxc3+ {[%clk 0:02:49]} 6. bxc3 {[%clk 0:02:18]}  c5 {[%clk 0:02:50]} 7. Bd3 {[%clk 0:02:13]}  d6 {[%clk 0:02:49]} 8. Nf3 {[%clk 0:02:05]}  Nc6 {[%clk 0:02:49]} 9. e4 {[%clk 0:01:58]}  e5 {[%clk 0:02:49]} 10. d5 {[%clk 0:01:55]}  Ne7 {[%clk 0:02:48]} 11. O-O {[%clk 0:01:45]}  Ng6 {[%clk 0:02:47]} 12. Ra2 {[%clk 0:01:37]}  Nh5 {[%clk 0:02:47]} 13. g3 {[%clk 0:01:33]}  Bh3 {[%clk 0:02:41]} 14. Re1 {[%clk 0:01:25]}  Qd7 {[%clk 0:02:36]} 15. Ng5 {[%clk 0:01:18]}  h6 {[%clk 0:02:25]} 16. Nxh3 {[%clk 0:01:08]}  Qxh3 {[%clk 0:02:23]} 17. Bf1 {[%clk 0:01:08]}  Qd7 {[%clk 0:02:19]} 18. Qxh5 {[%clk 0:01:07]}  Kh7 {[%clk 0:02:20]} 19. Bh3 {[%clk 0:01:05]}  Qe7 {[%clk 0:02:17]} 20. Bf5 {[%clk 0:01:04]}  Kg8 {[%clk 0:02:14]} 21. Bxg6 {[%clk 0:00:57]}  fxg6 {[%clk 0:02:15]} 22. Qxg6 {[%clk 0:00:57]}  Rf6 {[%clk 0:02:15]} 23. Qg4 {[%clk 0:00:56]}  Raf8 {[%clk 0:02:16]} 24. h4 {[%clk 0:00:51]}  Qf7 {[%clk 0:02:16]} 25. Be3 {[%clk 0:00:48]}  Kh8 {[%clk 0:02:15]} 26. Kg2 {[%clk 0:00:45]}  h5 {[%clk 0:02:10]} 27. Qh3 {[%clk 0:00:37]}  Qg6 {[%clk 0:02:10]} 28. Bg5 {[%clk 0:00:35]}  Rf3 {[%clk 0:02:08]} 29. Qe6 {[%clk 0:00:29]}  Kh7 {[%clk 0:01:36]} 30. Qxg6+ {[%clk 0:00:26]}  Kxg6 {[%clk 0:01:37]} 31. Re3 {[%clk 0:00:25]}  R3f7 {[%clk 0:01:35]} 32. f4 {[%clk 0:00:24]}  b6 {[%clk 0:01:31]} 33. fxe5 {[%clk 0:00:22]}  dxe5 {[%clk 0:01:31]} 34. d6 {[%clk 0:00:22]}  Rd7 {[%clk 0:01:28]} 35. Be7 {[%clk 0:00:21]}  Rc8 {[%clk 0:01:23]} 36. Rf2 {[%clk 0:00:20]}  a6 {[%clk 0:01:24]} 37. Rf5 {[%clk 0:00:18]}  b5 {[%clk 0:01:23]} 38. Ref3 {[%clk 0:00:17]}  bxc4 {[%clk 0:01:22]} 39. Rg5+ {[%clk 0:00:17]}  Kh6 {[%clk 0:01:22]} 40. Rxe5 {[%clk 0:00:16]}  Rb8 {[%clk 0:01:21]} 41. Re6+ {[%clk 0:00:15]}  Kh7 {[%clk 0:01:20]} 42. Rf5 {[%clk 0:00:14]}  Rb2+ {[%clk 0:01:20]} 43. Kh3 {[%clk 0:00:13]}  Rdb7 {[%clk 0:01:20]} 44. Rxh5+ {[%clk 0:00:12]}  Kg8 {[%clk 0:01:21]} 45. Rxc5 {[%clk 0:00:11]}  Re2 {[%clk 0:01:20]} 46. Rc7 {[%clk 0:00:08]}  Rbb2 {[%clk 0:01:18]} 47. d7 {[%clk 0:00:08]}  Rh2+ {[%clk 0:01:15]} 48. Kg4 {[%clk 0:00:07]}  Kh7 {[%clk 0:01:16]} 49. d8=Q {[%clk 0:00:06]}  Rbf2 {[%clk 0:01:16]} 50. Bf6 {[%clk 0:00:04]}  Rf4+ {[%clk 0:01:15]} 51. Kxf4 {[%clk 0:00:03]}  Kh6 {[%clk 0:01:15]} 52. Bg5+ {[%clk 0:00:03]}  Kh5 {[%clk 0:01:15]} 53. Rh6+ {[%clk 0:00:03]}  gxh6 {[%clk 0:01:15]} 54. Qe8# {[%clk 0:00:03]} 1-0


[Site "https://www.chess.com"]

[Event "Titled Tuesday Blitz February 14 Early 2023"]
[White "Valle Maytin, Luis Enrique"]
[Black "Clawitter, Craig"]
[WhiteFideId "3503666"]
[BlackFideId "2023105"]
[WhiteElo "2241"]
[BlackElo "2050"]
[Result "1-0"]
[Round "07"]
[TimeControl "180+2"]
[Date "2023.02.15"]
[WhiteClock "0:00:04"]
[BlackClock "0:00:01"]

1. e4 {[%clk 0:03:00]}  e6 {[%clk 0:02:58]} 2. d4 {[%clk 0:03:00]}  d5 {[%clk 0:02:58]} 3. exd5 {[%clk 0:03:01]}  exd5 {[%clk 0:02:59]} 4. Nf3 {[%clk 0:03:02]}  Bd6 {[%clk 0:02:57]} 5. Bd3 {[%clk 0:03:02]}  Nc6 {[%clk 0:02:57]} 6. Qe2+ {[%clk 0:03:02]}  Nge7 {[%clk 0:02:55]} 7. O-O {[%clk 0:03:01]}  Bg4 {[%clk 0:02:55]} 8. c3 {[%clk 0:03:01]}  Qd7 {[%clk 0:02:55]} 9. h3 {[%clk 0:03:01]}  Bh5 {[%clk 0:02:52]} 10. Nbd2 {[%clk 0:01:45]}  O-O-O {[%clk 0:02:49]} 11. Bb5 {[%clk 0:01:44]}  f6 {[%clk 0:02:40]} 12. b4 {[%clk 0:01:43]}  Ng6 {[%clk 0:02:10]} 13. Nb3 {[%clk 0:01:38]}  Nh4 {[%clk 0:01:37]} 14. Nbd2 {[%clk 0:01:30]}  Kb8 {[%clk 0:01:20]} 15. Qd3 {[%clk 0:00:36]}  Ng6 {[%clk 0:00:35]} 16. Nb3 {[%clk 0:00:32]}  Rde8 {[%clk 0:00:27]} 17. a4 {[%clk 0:00:26]}  Nf4 {[%clk 0:00:14]} 18. Bxf4 {[%clk 0:00:25]}  Bxf4 {[%clk 0:00:15]} 19. Nc5 {[%clk 0:00:24]}  Qd6 {[%clk 0:00:15]} 20. a5 {[%clk 0:00:20]}  g5 {[%clk 0:00:11]} 21. a6 {[%clk 0:00:06]}  b6 {[%clk 0:00:10]} 22. Bxc6 {[%clk 0:00:05]}  Qxc6 {[%clk 0:00:10]} 23. Na4 {[%clk 0:00:05]}  Bg6 {[%clk 0:00:08]} 24. Qd1 {[%clk 0:00:03]}  h5 {[%clk 0:00:08]} 25. g3 {[%clk 0:00:02]}  g4 {[%clk 0:00:07]} 26. Nh4 {[%clk 0:00:02]}  Be4 {[%clk 0:00:06]} 27. gxf4 {[%clk 0:00:02]}  gxh3 {[%clk 0:00:06]} 28. f3 {[%clk 0:00:02]}  Rhg8+ {[%clk 0:00:05]} 29. Kh2 {[%clk 0:00:03]}  Qe6 {[%clk 0:00:04]} 30. Rg1 {[%clk 0:00:02]}  Rxg1 {[%clk 0:00:03]} 31. Qxg1 {[%clk 0:00:03]}  Bf5 {[%clk 0:00:03]} 32. Qf2 {[%clk 0:00:03]}  Rg8 {[%clk 0:00:02]} 33. Rg1 {[%clk 0:00:04]}  Rxg1 {[%clk 0:00:02]} 34. Kxg1 {[%clk 0:00:04]}  Qc6 {[%clk 0:00:01]} 35. Nb2 {[%clk 0:00:04]} 1-0


[Site "https://www.chess.com"]

[Event "Titled Tuesday Blitz February 14 Early 2023"]
[White "Ardila, Oscar Humberto"]
[Black "Silvestre, Christian"]
[WhiteFideId "4404742"]
[BlackFideId "30956269"]
[WhiteElo "1982"]
[BlackElo "1942"]
[Result "0-1"]
[Round "07"]
[TimeControl "180+2"]
[Date "2023.02.15"]
[WhiteClock "0:00:09"]
[BlackClock "0:00:49"]

1. d4 {[%clk 0:03:00]}  e5 {[%clk 0:02:58]} 2. dxe5 {[%clk 0:02:57]}  Nc6 {[%clk 0:02:58]} 3. Nf3 {[%clk 0:02:57]}  Nge7 {[%clk 0:02:58]} 4. Nbd2 {[%clk 0:02:56]}  Ng6 {[%clk 0:02:57]} 5. e3 {[%clk 0:02:56]}  Ncxe5 {[%clk 0:02:51]} 6. Be2 {[%clk 0:02:56]}  d5 {[%clk 0:02:50]} 7. O-O {[%clk 0:02:56]}  Bd6 {[%clk 0:02:49]} 8. b3 {[%clk 0:02:55]}  Qf6 {[%clk 0:02:46]} 9. Rb1 {[%clk 0:02:53]}  Nh4 {[%clk 0:02:42]} 10. Bb2 {[%clk 0:02:26]}  Nexf3+ {[%clk 0:02:37]} 11. Nxf3 {[%clk 0:02:19]}  Nxf3+ {[%clk 0:02:32]} 12. Bxf3 {[%clk 0:02:19]}  Qh6 {[%clk 0:02:32]} 13. g3 {[%clk 0:02:18]}  c6 {[%clk 0:02:27]} 14. Qd4 {[%clk 0:02:15]}  O-O {[%clk 0:02:24]} 15. Bg2 {[%clk 0:02:08]}  Bf5 {[%clk 0:02:23]} 16. Qd2 {[%clk 0:01:55]}  a5 {[%clk 0:02:20]} 17. a4 {[%clk 0:01:48]}  Bb4 {[%clk 0:02:19]} 18. Bc3 {[%clk 0:01:47]}  Be7 {[%clk 0:02:01]} 19. Rbc1 {[%clk 0:01:46]}  Ba3 {[%clk 0:01:58]} 20. Ra1 {[%clk 0:01:43]}  Be7 {[%clk 0:01:57]} 21. Bxa5 {[%clk 0:01:39]}  Bxc2 {[%clk 0:01:57]} 22. Qxc2 {[%clk 0:01:26]}  Rxa5 {[%clk 0:01:56]} 23. Qc3 {[%clk 0:01:16]}  Raa8 {[%clk 0:01:55]} 24. Rad1 {[%clk 0:01:08]}  Qe6 {[%clk 0:01:46]} 25. Rfe1 {[%clk 0:01:03]}  f5 {[%clk 0:01:46]} 26. Qd4 {[%clk 0:00:58]}  Bf6 {[%clk 0:01:43]} 27. Qb4 {[%clk 0:00:56]}  Rf7 {[%clk 0:01:40]} 28. Bh3 {[%clk 0:00:52]}  Qe5 {[%clk 0:01:38]} 29. Qf4 {[%clk 0:00:51]}  g6 {[%clk 0:01:34]} 30. Qb4 {[%clk 0:00:39]}  Qb2 {[%clk 0:01:29]} 31. Rf1 {[%clk 0:00:34]}  Bc3 {[%clk 0:01:25]} 32. Qb6 {[%clk 0:00:34]}  Ba5 {[%clk 0:01:23]} 33. Qd4 {[%clk 0:00:29]}  Qxb3 {[%clk 0:01:17]} 34. Rb1 {[%clk 0:00:29]}  Qc3 {[%clk 0:01:17]} 35. Qxc3 {[%clk 0:00:18]}  Bxc3 {[%clk 0:01:18]} 36. Rb3 {[%clk 0:00:18]}  Ba5 {[%clk 0:01:11]} 37. Rfb1 {[%clk 0:00:18]}  Ra7 {[%clk 0:01:09]} 38. Bf1 {[%clk 0:00:17]}  Kf8 {[%clk 0:01:07]} 39. Kg2 {[%clk 0:00:17]}  Ke8 {[%clk 0:01:07]} 40. Kf3 {[%clk 0:00:17]}  Kd8 {[%clk 0:01:07]} 41. h4 {[%clk 0:00:17]}  Kc7 {[%clk 0:01:06]} 42. Kf4 {[%clk 0:00:18]}  Kd6 {[%clk 0:01:03]} 43. Kg5 {[%clk 0:00:14]}  Bd8+ {[%clk 0:00:59]} 44. Kf4 {[%clk 0:00:14]}  h6 {[%clk 0:00:59]} 45. Bd3 {[%clk 0:00:13]}  Rxa4+ {[%clk 0:00:55]} 46. Kf3 {[%clk 0:00:12]}  b5 {[%clk 0:00:55]} 47. Rd1 {[%clk 0:00:10]}  g5 {[%clk 0:00:51]} 48. hxg5 {[%clk 0:00:10]}  hxg5 {[%clk 0:00:52]} 49. Rh1 {[%clk 0:00:10]}  f4 {[%clk 0:00:50]} 50. Rh6+ {[%clk 0:00:09]}  Rf6 {[%clk 0:00:47]} 51. Rxf6+ {[%clk 0:00:09]}  Bxf6 {[%clk 0:00:48]} 52. exf4 {[%clk 0:00:09]}  gxf4 {[%clk 0:00:48]} 53. gxf4 {[%clk 0:00:10]}  b4 {[%clk 0:00:46]} 54. Kg4 {[%clk 0:00:09]}  Ra3 {[%clk 0:00:45]} 55. Bc2 {[%clk 0:00:07]}  Rxb3 {[%clk 0:00:44]} 56. Bxb3 {[%clk 0:00:07]}  c5 {[%clk 0:00:45]} 57. Kf5 {[%clk 0:00:08]}  Bd4 {[%clk 0:00:46]} 58. f3 {[%clk 0:00:07]}  c4 {[%clk 0:00:46]} 59. Bc2 {[%clk 0:00:08]}  b3 {[%clk 0:00:46]} 60. Bb1 {[%clk 0:00:08]}  c3 {[%clk 0:00:47]} 61. Kg6 {[%clk 0:00:08]}  c2 {[%clk 0:00:47]} 62. Bxc2 {[%clk 0:00:08]}  bxc2 {[%clk 0:00:48]} 63. f5 {[%clk 0:00:09]}  c1=Q {[%clk 0:00:49]} 64. f6 {[%clk 0:00:09]} 0-1


[Site "https://www.chess.com"]

[Event "Titled Tuesday Blitz February 14 Early 2023"]
[White "Lorenzo De La Riva, Lazaro"]
[Black "SicilianPanzer"]
[WhiteFideId "2268809"]
[WhiteElo "2404"]
[BlackElo "2240"]
[Result "1-0"]
[Round "07"]
[TimeControl "180+2"]
[Date "2023.02.15"]
[WhiteClock "0:00:09"]
[BlackClock "0:00:01"]

1. d4 {[%clk 0:02:53]}  Nf6 {[%clk 0:02:58]} 2. Nd2 {[%clk 0:02:54]}  g6 {[%clk 0:02:49]} 3. e4 {[%clk 0:02:51]}  d6 {[%clk 0:02:49]} 4. Bd3 {[%clk 0:02:34]}  Bg7 {[%clk 0:02:48]} 5. Ngf3 {[%clk 0:02:34]}  O-O {[%clk 0:02:47]} 6. O-O {[%clk 0:02:33]}  Nbd7 {[%clk 0:02:44]} 7. Re1 {[%clk 0:02:32]}  e5 {[%clk 0:02:42]} 8. c3 {[%clk 0:02:31]}  b6 {[%clk 0:02:41]} 9. h3 {[%clk 0:02:31]}  Bb7 {[%clk 0:02:39]} 10. a4 {[%clk 0:02:30]}  a5 {[%clk 0:02:37]} 11. b3 {[%clk 0:02:19]}  Re8 {[%clk 0:02:25]} 12. Bb2 {[%clk 0:02:16]}  d5 {[%clk 0:02:23]} 13. exd5 {[%clk 0:02:10]}  Nxd5 {[%clk 0:02:17]} 14. c4 {[%clk 0:01:34]}  Nf4 {[%clk 0:02:09]} 15. Be4 {[%clk 0:01:33]}  Bxe4 {[%clk 0:02:02]} 16. Nxe4 {[%clk 0:01:32]}  f5 {[%clk 0:01:54]} 17. Ng3 {[%clk 0:01:32]}  e4 {[%clk 0:01:51]} 18. Nh2 {[%clk 0:01:32]}  h5 {[%clk 0:01:41]} 19. Qc2 {[%clk 0:01:26]}  h4 {[%clk 0:01:12]} 20. Ne2 {[%clk 0:01:26]}  Nd3 {[%clk 0:01:11]} 21. Red1 {[%clk 0:01:25]}  Nxb2 {[%clk 0:01:09]} 22. Qxb2 {[%clk 0:01:24]}  Qg5 {[%clk 0:01:05]} 23. Qc1 {[%clk 0:01:21]}  e3 {[%clk 0:00:54]} 24. f4 {[%clk 0:01:21]}  Qh5 {[%clk 0:00:43]} 25. Nf3 {[%clk 0:01:20]}  Nf6 {[%clk 0:00:41]} 26. Qc2 {[%clk 0:01:08]}  Ne4 {[%clk 0:00:36]} 27. Ne5 {[%clk 0:01:06]}  Rad8 {[%clk 0:00:26]} 28. Rd3 {[%clk 0:01:01]}  c5 {[%clk 0:00:23]} 29. dxc5 {[%clk 0:00:43]}  Rxd3 {[%clk 0:00:18]} 30. Qxd3 {[%clk 0:00:44]}  Nxc5 {[%clk 0:00:18]} 31. Qxe3 {[%clk 0:00:44]}  g5 {[%clk 0:00:12]} 32. Qd2 {[%clk 0:00:31]}  gxf4 {[%clk 0:00:10]} 33. Qd5+ {[%clk 0:00:31]}  Kh7 {[%clk 0:00:10]} 34. Nxf4 {[%clk 0:00:30]}  Qg5 {[%clk 0:00:10]} 35. Neg6 {[%clk 0:00:16]}  Qg3 {[%clk 0:00:08]} 36. Rf1 {[%clk 0:00:14]}  Ne4 {[%clk 0:00:06]} 37. Qd3 {[%clk 0:00:13]}  Qg5 {[%clk 0:00:03]} 38. Qf3 {[%clk 0:00:12]}  Ng3 {[%clk 0:00:03]} 39. Rd1 {[%clk 0:00:11]}  Qf6 {[%clk 0:00:02]} 40. Kh2 {[%clk 0:00:11]}  Qb2 {[%clk 0:00:01]} 41. Nxh4 {[%clk 0:00:09]} 1-0


[Site "https://www.chess.com"]

[Event "Titled Tuesday Blitz February 14 Early 2023"]
[White "Zaksaite, Salomeja"]
[Black "Kulkarni, Vikramaditya"]
[WhiteFideId "12801496"]
[BlackFideId "5009847"]
[WhiteElo "2283"]
[BlackElo "2251"]
[Result "1/2-1/2"]
[Round "07"]
[TimeControl "180+2"]
[Date "2023.02.15"]
[WhiteClock "0:00:31"]
[BlackClock "0:01:30"]

1. e4 {[%clk 0:02:57]}  d6 {[%clk 0:03:00]} 2. d4 {[%clk 0:02:55]}  Nf6 {[%clk 0:03:00]} 3. Nc3 {[%clk 0:02:53]}  e5 {[%clk 0:03:00]} 4. Nf3 {[%clk 0:02:49]}  Nbd7 {[%clk 0:02:59]} 5. Rg1 {[%clk 0:02:48]}  Be7 {[%clk 0:02:56]} 6. g4 {[%clk 0:02:48]}  g6 {[%clk 0:02:56]} 7. g5 {[%clk 0:02:45]}  Nh5 {[%clk 0:02:56]} 8. Bc4 {[%clk 0:02:44]}  O-O {[%clk 0:02:53]} 9. Be3 {[%clk 0:02:44]}  c6 {[%clk 0:02:48]} 10. d5 {[%clk 0:02:34]}  b5 {[%clk 0:02:42]} 11. dxc6 {[%clk 0:02:33]}  bxc4 {[%clk 0:02:42]} 12. cxd7 {[%clk 0:02:33]}  Bxd7 {[%clk 0:02:42]} 13. Nd5 {[%clk 0:02:33]}  Rb8 {[%clk 0:02:38]} 14. b3 {[%clk 0:02:22]}  Be6 {[%clk 0:02:35]} 15. bxc4 {[%clk 0:01:59]}  f5 {[%clk 0:02:35]} 16. gxf6 {[%clk 0:01:57]}  Bxf6 {[%clk 0:02:34]} 17. Ng5 {[%clk 0:01:05]}  Bxd5 {[%clk 0:01:41]} 18. Qxd5+ {[%clk 0:00:56]}  Kh8 {[%clk 0:01:41]} 19. Ne6 {[%clk 0:00:39]}  Qe7 {[%clk 0:01:29]} 20. Nxf8 {[%clk 0:00:38]}  Rxf8 {[%clk 0:01:30]} 21. O-O-O {[%clk 0:00:31]} 1/2-1/2


[Site "https://www.chess.com"]

[Event "Titled Tuesday Blitz February 14 Early 2023"]
[White "De Souza, Cristiano Gomes"]
[Black "Kielinkei"]
[WhiteFideId "2151758"]
[WhiteElo "2018"]
[BlackElo "2360"]
[Result "1-0"]
[Round "07"]
[TimeControl "180+2"]
[Date "2023.02.15"]
[WhiteClock "0:00:10"]
[BlackClock "0:00:02"]

1. d4 {[%clk 0:03:00]}  f5 {[%clk 0:02:57]} 2. c4 {[%clk 0:02:59]}  Nf6 {[%clk 0:02:57]} 3. Nf3 {[%clk 0:02:58]}  g6 {[%clk 0:02:57]} 4. Nc3 {[%clk 0:02:58]}  Bg7 {[%clk 0:02:57]} 5. g3 {[%clk 0:02:58]}  O-O {[%clk 0:02:56]} 6. Bg2 {[%clk 0:02:59]}  d6 {[%clk 0:02:57]} 7. O-O {[%clk 0:02:59]}  c6 {[%clk 0:02:58]} 8. b3 {[%clk 0:02:58]}  Na6 {[%clk 0:02:28]} 9. Ba3 {[%clk 0:02:53]}  Re8 {[%clk 0:02:25]} 10. Qc2 {[%clk 0:02:48]}  Qa5 {[%clk 0:02:12]} 11. Bb2 {[%clk 0:02:37]}  e5 {[%clk 0:02:09]} 12. dxe5 {[%clk 0:02:36]}  dxe5 {[%clk 0:02:09]} 13. a3 {[%clk 0:02:35]}  e4 {[%clk 0:02:06]} 14. Ng5 {[%clk 0:02:31]}  h6 {[%clk 0:01:55]} 15. Nh3 {[%clk 0:02:30]}  Qc7 {[%clk 0:01:46]} 16. Rad1 {[%clk 0:02:24]}  Nc5 {[%clk 0:01:44]} 17. b4 {[%clk 0:02:21]}  Ne6 {[%clk 0:01:44]} 18. e3 {[%clk 0:02:16]}  Bd7 {[%clk 0:01:35]} 19. Rd2 {[%clk 0:02:14]}  Rad8 {[%clk 0:01:35]} 20. Rfd1 {[%clk 0:02:13]}  Bc8 {[%clk 0:01:36]} 21. Ne2 {[%clk 0:02:07]}  Rxd2 {[%clk 0:01:25]} 22. Rxd2 {[%clk 0:02:07]}  Rd8 {[%clk 0:01:26]} 23. Nhf4 {[%clk 0:02:06]}  g5 {[%clk 0:01:20]} 24. Nxe6 {[%clk 0:02:04]}  Bxe6 {[%clk 0:01:20]} 25. Nd4 {[%clk 0:02:00]}  Bc8 {[%clk 0:01:20]} 26. Bf1 {[%clk 0:01:59]}  f4 {[%clk 0:01:18]} 27. exf4 {[%clk 0:01:57]}  gxf4 {[%clk 0:01:18]} 28. Ne2 {[%clk 0:01:34]}  fxg3 {[%clk 0:01:02]} 29. Nxg3 {[%clk 0:01:32]}  Re8 {[%clk 0:00:50]} 30. Re2 {[%clk 0:01:20]}  Bg4 {[%clk 0:00:47]} 31. Re3 {[%clk 0:01:18]}  Bf3 {[%clk 0:00:44]} 32. Bg2 {[%clk 0:01:12]}  Ng4 {[%clk 0:00:34]} 33. Re1 {[%clk 0:01:07]}  Bxg2 {[%clk 0:00:25]} 34. Kxg2 {[%clk 0:01:05]}  Bxb2 {[%clk 0:00:26]} 35. Qxb2 {[%clk 0:01:04]}  Rf8 {[%clk 0:00:21]} 36. Re2 {[%clk 0:00:42]}  Qf4 {[%clk 0:00:21]} 37. Qd2 {[%clk 0:00:17]}  Qf3+ {[%clk 0:00:13]} 38. Kg1 {[%clk 0:00:16]}  e3 {[%clk 0:00:12]} 39. fxe3 {[%clk 0:00:13]}  h5 {[%clk 0:00:08]} 40. Qe1 {[%clk 0:00:13]}  h4 {[%clk 0:00:07]} 41. Nh5 {[%clk 0:00:11]}  Ne5 {[%clk 0:00:04]} 42. Rg2+ {[%clk 0:00:11]}  Kh8 {[%clk 0:00:03]} 43. Nf4 {[%clk 0:00:10]}  Ng4 {[%clk 0:00:02]} 44. Qe2 {[%clk 0:00:09]}  Qxe2 {[%clk 0:00:01]} 45. Rxe2 {[%clk 0:00:09]}  Re8 {[%clk 0:00:02]} 46. Ng6+ {[%clk 0:00:09]}  Kg7 {[%clk 0:00:02]} 47. Nxh4 {[%clk 0:00:10]} 1-0


[Site "https://www.chess.com"]

[Event "Titled Tuesday Blitz February 14 Early 2023"]
[White "Harriott, Tyrell"]
[Black "Lesbekova, Assel"]
[WhiteFideId "2086484"]
[BlackFideId "13713248"]
[WhiteElo "1889"]
[BlackElo "1772"]
[Result "0-1"]
[Round "07"]
[TimeControl "180+2"]
[Date "2023.02.15"]
[WhiteClock "0:00:31"]
[BlackClock "0:00:42"]

1. d4 {[%clk 0:03:00]}  f5 {[%clk 0:02:59]} 2. e3 {[%clk 0:03:01]}  d6 {[%clk 0:02:58]} 3. Bd3 {[%clk 0:03:02]}  Nf6 {[%clk 0:02:58]} 4. f4 {[%clk 0:03:03]}  g6 {[%clk 0:02:58]} 5. Nf3 {[%clk 0:03:04]}  Bg7 {[%clk 0:02:58]} 6. O-O {[%clk 0:03:05]}  O-O {[%clk 0:02:57]} 7. Nbd2 {[%clk 0:03:06]}  Qe8 {[%clk 0:02:52]} 8. e4 {[%clk 0:03:06]}  fxe4 {[%clk 0:02:51]} 9. Nxe4 {[%clk 0:03:07]}  Nbd7 {[%clk 0:02:49]} 10. Neg5 {[%clk 0:03:06]}  e5 {[%clk 0:02:43]} 11. fxe5 {[%clk 0:03:01]}  dxe5 {[%clk 0:02:43]} 12. Bc4+ {[%clk 0:02:57]}  Kh8 {[%clk 0:02:40]} 13. dxe5 {[%clk 0:02:49]}  Nxe5 {[%clk 0:02:35]} 14. Nxe5 {[%clk 0:02:47]}  Qxe5 {[%clk 0:02:36]} 15. Nf7+ {[%clk 0:02:44]}  Rxf7 {[%clk 0:02:37]} 16. Bxf7 {[%clk 0:02:43]}  Bg4 {[%clk 0:02:36]} 17. Qe1 {[%clk 0:02:40]}  Qc5+ {[%clk 0:02:33]} 18. Qf2 {[%clk 0:02:39]}  Qh5 {[%clk 0:02:20]} 19. Qf4 {[%clk 0:02:18]}  Rf8 {[%clk 0:02:14]} 20. Bb3 {[%clk 0:02:12]}  Be2 {[%clk 0:02:09]} 21. Rf2 {[%clk 0:02:07]}  Ng4 {[%clk 0:01:43]} 22. Qxf8+ {[%clk 0:02:02]}  Bxf8 {[%clk 0:01:44]} 23. Rxf8+ {[%clk 0:02:02]}  Kg7 {[%clk 0:01:45]} 24. Rg8+ {[%clk 0:01:55]}  Kf6 {[%clk 0:01:44]} 25. Rf8+ {[%clk 0:01:42]}  Ke5 {[%clk 0:01:30]} 26. Bf4+ {[%clk 0:01:29]}  Ke4 {[%clk 0:01:27]} 27. h3 {[%clk 0:01:16]}  Qc5+ {[%clk 0:01:21]} 28. Kh1 {[%clk 0:01:14]}  Nf2+ {[%clk 0:01:20]} 29. Kh2 {[%clk 0:01:09]}  Qxf8 {[%clk 0:01:20]} 30. Bg3 {[%clk 0:01:08]}  Ke3 {[%clk 0:01:10]} 31. Re1 {[%clk 0:01:06]}  Kd2 {[%clk 0:01:09]} 32. Ra1 {[%clk 0:00:55]}  Ne4 {[%clk 0:01:05]} 33. Bxc7 {[%clk 0:00:53]}  Qf2 {[%clk 0:01:01]} 34. Ba5+ {[%clk 0:00:51]}  Ke3 {[%clk 0:00:58]} 35. Be1 {[%clk 0:00:40]}  Qf4+ {[%clk 0:00:53]} 36. Kg1 {[%clk 0:00:37]}  Ng3 {[%clk 0:00:47]} 37. Bf2+ {[%clk 0:00:34]}  Qxf2+ {[%clk 0:00:44]} 38. Kh2 {[%clk 0:00:33]}  Nf1+ {[%clk 0:00:44]} 39. Kh1 {[%clk 0:00:31]}  Bf3 {[%clk 0:00:42]} 0-1


[Site "https://www.chess.com"]

[Event "Titled Tuesday Blitz February 14 Early 2023"]
[White "Kohler, Aran"]
[Black "Real_taiatai"]
[WhiteFideId "1002856"]
[WhiteElo "2010"]
[BlackElo "2349"]
[Result "0-1"]
[Round "07"]
[TimeControl "180+2"]
[Date "2023.02.15"]
[WhiteClock "0:00:44"]
[BlackClock "0:01:39"]

1. Nf3 {[%clk 0:03:00]}  Nf6 {[%clk 0:02:59]} 2. d4 {[%clk 0:02:59]}  g6 {[%clk 0:02:59]} 3. Bg5 {[%clk 0:02:58]}  Bg7 {[%clk 0:02:58]} 4. Nbd2 {[%clk 0:02:56]}  d6 {[%clk 0:02:58]} 5. e3 {[%clk 0:02:56]}  Nbd7 {[%clk 0:02:57]} 6. Bd3 {[%clk 0:02:55]}  O-O {[%clk 0:02:57]} 7. c3 {[%clk 0:02:55]}  b6 {[%clk 0:02:57]} 8. h4 {[%clk 0:02:53]}  h5 {[%clk 0:02:51]} 9. Qb3 {[%clk 0:02:50]}  Bb7 {[%clk 0:02:49]} 10. O-O-O {[%clk 0:02:40]}  e6 {[%clk 0:02:47]} 11. e4 {[%clk 0:02:34]}  a6 {[%clk 0:02:38]} 12. e5 {[%clk 0:02:33]}  dxe5 {[%clk 0:02:34]} 13. dxe5 {[%clk 0:02:33]}  Nc5 {[%clk 0:02:34]} 14. Qc2 {[%clk 0:02:17]}  Nxd3+ {[%clk 0:02:22]} 15. Kb1 {[%clk 0:02:17]}  Nxf2 {[%clk 0:02:21]} 16. exf6 {[%clk 0:02:11]}  Bxf6 {[%clk 0:02:15]} 17. Rhe1 {[%clk 0:01:30]}  Nxd1 {[%clk 0:02:05]} 18. Rxd1 {[%clk 0:01:28]}  Bxg5 {[%clk 0:02:02]} 19. hxg5 {[%clk 0:01:24]}  Qd5 {[%clk 0:01:58]} 20. c4 {[%clk 0:01:12]}  Qf5 {[%clk 0:01:56]} 21. Qxf5 {[%clk 0:01:12]}  exf5 {[%clk 0:01:57]} 22. Re1 {[%clk 0:01:06]}  Rfe8 {[%clk 0:01:54]} 23. Ne5 {[%clk 0:01:05]}  Re6 {[%clk 0:01:50]} 24. Ndf3 {[%clk 0:00:54]}  Rae8 {[%clk 0:01:49]} 25. Rd1 {[%clk 0:00:49]}  Rxe5 {[%clk 0:01:45]} 26. Nxe5 {[%clk 0:00:49]}  Rxe5 {[%clk 0:01:45]} 27. Rd7 {[%clk 0:00:50]}  Rc5 {[%clk 0:01:44]} 28. b3 {[%clk 0:00:49]}  a5 {[%clk 0:01:43]} 29. g3 {[%clk 0:00:48]}  f4 {[%clk 0:01:40]} 30. gxf4 {[%clk 0:00:47]}  h4 {[%clk 0:01:39]} 31. Kb2 {[%clk 0:00:47]}  h3 {[%clk 0:01:39]} 32. Rd3 {[%clk 0:00:44]}  h2 {[%clk 0:01:39]} 33. Rh3 {[%clk 0:00:44]}  h1=Q {[%clk 0:01:39]} 0-1


[Site "https://www.chess.com"]